fUST/lending_fUST_20250502
["ID","MTS","AMOUNT","RATE_DAILY","PERIOD"]
[359626410,1746193832374,-362.1083304,0.00019,2]
[359626412,1746193832384,-500.0,0.00019,2]
[359626414,1746193832397,-1806.60367498,0.00019007,2]
[359626455,1746193838222,-4063.69772856,0.000187,2]
[359626462,1746193838279,-416.351307,0.000187,2]
[359626464,1746193838291,-1806.41131233,0.000187,2]
[359626466,1746193838302,-1614.83479386,0.000187,2]
[359626471,1746193838342,-708.43795877,0.000187,2]
[359626473,1746193838353,-813.62704925,0.000187,2]
[359626535,1746193840465,-11202.5326794,0.000187,2]
[359626542,1746193840524,-994.5,0.000187,2]
[359626549,1746193840583,-1275.19498281,0.000187,2]
[359627270,1746194207879,1501.0,0.00023,120]
[359627274,1746194309708,1462.0008184,0.00017699,2]
[359627286,1746194654152,-156.73366674,0.00018598,2]
[359627287,1746194654179,-300.0,0.00018672,2]
[359627288,1746194654207,-300.0,0.00018672,2]
[359627289,1746194654236,-343.26633326,0.00018672,2]
[359627410,1746195032476,-500.0,0.0001818,2]
[359627412,1746195032486,-920.68569227,0.000186,2]
[359627413,1746195032496,-41.31512618,0.000186,2]
[359627415,1746195032577,-115.41854055,0.000186,2]
[359627416,1746195032587,-1200.0,0.00018671,2]
[359627417,1746195032597,-300.0,0.00018672,2]
[359627418,1746195032607,-300.0,0.00018672,2]
[359627419,1746195032617,-300.0,0.00018672,2]
[359627420,1746195032627,-505.67184414,0.00018673,2]
[359627421,1746195032636,-500.0,0.00018673,2]
[359627422,1746195032645,-500.0,0.00018673,2]
[359627423,1746195032655,-500.0,0.00018673,2]
[359627425,1746195032664,-502.80424046,0.00018673,2]
[359627426,1746195032674,-432.27088098,0.00018673,2]
[359627428,1746195032684,-500.0,0.00018673,2]
[359627430,1746195032693,-500.0,0.00018673,2]
[359627431,1746195032702,-500.0,0.00018673,2]
[359627432,1746195032712,-502.17372596,0.00018673,2]
[359627433,1746195032722,-152.99204414,0.00018673,2]
[359627434,1746195032732,-500.0,0.00018673,2]
[359627435,1746195032745,-501.10232352,0.00018673,2]
[359627436,1746195032754,-500.0,0.00018673,2]
[359627437,1746195032764,-501.59357415,0.00018673,2]
[359627438,1746195032773,-500.0,0.00018673,2]
[359627439,1746195032784,-253.31,0.00018688,3]
[359627440,1746195032794,-759.98,0.00018688,3]
[359627441,1746195032803,-1418.82429196,0.0001869,3]
[359627442,1746195032821,-607.67570804,0.0001869,3]
[359627443,1746195032831,-1013.25,0.0001869,3]
[359627444,1746195032841,-506.62,0.0001869,3]
[359627445,1746195032850,-608.38690645,0.00018696,2]
[359627446,1746195032860,-292.52275962,0.00018697,2]
[359627447,1746195032872,-7476.76418516,0.00018698,2]
[359627452,1746195038479,-130674.94822236,0.00018698,2]
[359627453,1746195038489,-140618.37643979,0.000187,2]
[359627454,1746195038500,-156.73366673,0.00018839,2]
[359627455,1746195038509,-152.0,0.00018999,2]
[359627456,1746195038520,-362.1083304,0.00019,2]
[359627458,1746195038530,-362.1083304,0.00019,2]
[359627460,1746195038540,-313.5881685,0.00019,2]
[359627463,1746195038550,-155.0142312,0.00019,2]
[359627465,1746195038563,-362.1083304,0.00019,2]
[359627467,1746195038573,-362.1083304,0.00019,2]
[359627469,1746195038583,-3193.39632502,0.00019007,2]
[359627471,1746195038593,-156.73366673,0.00019078,2]
[359627473,1746195038602,-10337.0,0.000191,2]
[359627474,1746195038612,-153.0,0.000191,2]
[359627475,1746195038623,-500.0,0.00019137,2]
[359627476,1746195038632,-503.0,0.00019172,2]
[359627477,1746195038641,-500.0,0.00019173,2]
[359627478,1746195038649,-500.0,0.00019173,2]
[359627479,1746195038658,-500.73937476,0.00019173,2]
[359627480,1746195038667,-520.19226725,0.00019173,2]
[359627481,1746195038676,-500.0,0.00019173,2]
[359627482,1746195038687,-218.17722843,0.00019177,4]
[359627483,1746195038697,-10772.6414661,0.00019177,2]
[359627484,1746195038706,-400.0,0.00019178,2]
[359627485,1746195038716,-353.03221882,0.00019178,2]
[359627486,1746195038726,-207.6080909,0.00019178,2]
[359627487,1746195038738,-528.03064904,0.00019178,2]
[359627488,1746195038749,-480.40275492,0.00019178,2]
[359627489,1746195038761,-164.04186504,0.00019178,2]
[359627490,1746195038774,-433.44626683,0.00019178,2]
[359627491,1746195038785,-500.0,0.00019178,2]
[359627492,1746195038796,-400.0,0.00019178,2]
[359627493,1746195038806,-400.0,0.00019178,2]
[359627494,1746195038817,-400.0,0.00019178,2]
[359627495,1746195038827,-400.0,0.00019178,2]
[359627496,1746195038838,-500.0,0.00019178,2]
[359627497,1746195038852,-500.0,0.00019178,2]
[359627498,1746195038862,-335.77616446,0.00019178,2]
[359627499,1746195038874,-400.0,0.00019178,2]
[359627500,1746195038884,-505.06186109,0.00019178,2]
[359627501,1746195038893,-500.0,0.00019178,2]
[359627502,1746195038904,-183.34237573,0.00019178,2]
[359627503,1746195038914,-500.0,0.00019178,2]
[359627504,1746195038924,-503.75151858,0.00019178,2]
[359627505,1746195038934,-500.0,0.00019178,2]
[359627506,1746195038943,-500.0,0.00019178,2]
[359627507,1746195038953,-500.0,0.00019178,2]
[359627508,1746195038963,-500.0,0.00019178,2]
[359627509,1746195038974,-500.0,0.00019178,2]
[359627510,1746195038985,-500.0,0.00019178,2]
[359627511,1746195038996,-500.0,0.00019178,2]
[359627512,1746195039006,-500.0,0.00019178,2]
[359627513,1746195039016,-500.0,0.00019178,2]
[359627514,1746195039026,-536.71112375,0.00019178,2]
[359627515,1746195039035,-503.577723,0.00019178,2]
[359627516,1746195039046,-500.0,0.00019178,2]
[359627517,1746195039056,-400.0,0.00019178,2]
[359627518,1746195039066,-400.0,0.00019178,2]
[359627519,1746195039076,-500.0,0.00019178,2]
[359627520,1746195039087,-400.0,0.00019178,2]
[359627521,1746195039097,-400.0,0.00019178,2]
[359627522,1746195039106,-500.0,0.00019178,2]
[359627523,1746195039117,-500.0,0.00019178,2]
[359627524,1746195039127,-500.0,0.00019178,2]
[359627525,1746195039137,-400.0,0.00019178,2]
[359627526,1746195039147,-500.0,0.00019178,2]
[359627527,1746195039157,-507.68178201,0.00019178,2]
[359627528,1746195039167,-503.58232279,0.00019178,2]
[359627529,1746195039177,-500.0,0.00019178,2]
[359627530,1746195039187,-500.0,0.00019178,2]
[359627531,1746195039197,-500.0,0.00019178,2]
[359627532,1746195039206,-400.0,0.00019178,2]
[359627533,1746195039216,-500.0,0.00019178,2]
[359627534,1746195039225,-500.0,0.00019178,2]
[359627535,1746195039235,-502.31225403,0.00019178,2]
[359627536,1746195039244,-400.0,0.00019178,2]
[359627537,1746195039254,-400.0,0.00019178,2]
[359627538,1746195039263,-444.26673282,0.00019178,2]
[359627539,1746195039273,-400.0,0.00019178,2]
[359627540,1746195039283,-500.0,0.00019178,2]
[359627541,1746195039295,-415.59327419,0.00019178,2]
[359627542,1746195039305,-400.0,0.00019178,2]
[359627543,1746195039314,-400.0,0.00019178,2]
[359627544,1746195039325,-500.0,0.00019178,2]
[359627545,1746195039334,-500.0,0.00019178,2]
[359627546,1746195039344,-400.0,0.00019178,2]
[359627547,1746195039354,-500.0,0.00019178,2]
[359627548,1746195039363,-513.6034958,0.00019178,2]
[359627549,1746195039374,-828.62,0.00019178,2]
[359627550,1746195039383,-500.0,0.00019178,2]
[359627551,1746195039393,-500.0,0.00019178,2]
[359627552,1746195039402,-500.0,0.00019178,2]
[359627553,1746195039411,-500.0,0.00019178,2]
[359627554,1746195039421,-500.0,0.00019178,2]
[359627555,1746195039430,-151.0,0.00019178,2]
[359627556,1746195039440,-151.0,0.00019178,2]
[359627557,1746195039449,-400.0,0.00019178,2]
[359627558,1746195039459,-151.0,0.00019178,2]
[359627559,1746195039469,-500.04595272,0.00019178,2]
[359627560,1746195039479,-400.0,0.00019178,2]
[359627561,1746195039489,-518.38791413,0.00019178,2]
[359627562,1746195039499,-500.0,0.00019178,2]
[359627563,1746195039509,-500.0,0.00019178,2]
[359627564,1746195039519,-400.0,0.00019178,2]
[359627565,1746195039528,-151.0,0.00019178,2]
[359627566,1746195039538,-400.0,0.00019178,2]
[359627567,1746195039548,-956.82,0.00019178,2]
[359627568,1746195039558,-199.98266511,0.00019178,2]
[359627569,1746195039567,-500.0,0.00019178,2]
[359627570,1746195039577,-500.0,0.00019178,2]
[359627571,1746195039587,-400.0,0.00019178,2]
[359627572,1746195039597,-151.0,0.00019178,2]
[359627573,1746195039607,-500.0,0.00019178,2]
[359627574,1746195039616,-151.0,0.00019178,2]
[359627575,1746195039630,-500.0,0.00019178,2]
[359627576,1746195039639,-500.0,0.00019178,2]
[359627577,1746195039649,-500.0,0.00019178,2]
[359627578,1746195039658,-151.0,0.00019178,2]
[359627579,1746195039668,-1070.99,0.00019178,2]
[359627580,1746195039679,-157.76401716,0.00019178,2]
[359627581,1746195039690,-400.0,0.00019178,2]
[359627582,1746195039699,-500.0,0.00019178,2]
[359627583,1746195039709,-500.0,0.00019178,2]
[359627584,1746195039719,-400.0,0.00019178,2]
[359627585,1746195039728,-240.90874238,0.00019178,2]
[359627586,1746195039739,-1000.0,0.00019178,2]
[359627587,1746195039749,-400.0,0.00019178,2]
[359627588,1746195039759,-506.15363087,0.00019178,2]
[359627589,1746195039769,-400.0,0.00019178,2]
[359627590,1746195039779,-500.0,0.00019178,2]
[359627591,1746195039789,-400.0,0.00019178,2]
[359627592,1746195039799,-500.0,0.00019178,2]
[359627593,1746195039809,-400.0,0.00019178,2]
[359627594,1746195039821,-500.0,0.00019178,2]
[359627595,1746195039831,-501.77666421,0.00019178,2]
[359627596,1746195039841,-400.0,0.00019178,2]
[359627597,1746195039851,-336.55092428,0.00019178,2]
[359627598,1746195039862,-514.39836032,0.00019178,2]
[359627599,1746195039872,-500.0,0.00019178,2]
[359627600,1746195039882,-200.1904558,0.00019178,2]
[359627601,1746195039892,-500.0,0.00019178,2]
[359627602,1746195039903,-500.0,0.00019178,2]
[359627603,1746195039913,-400.0,0.00019178,2]
[359627604,1746195039923,-400.0,0.00019178,2]
[359627605,1746195039932,-400.0,0.00019178,2]
[359627606,1746195039943,-400.0,0.00019178,2]
[359627607,1746195039952,-400.0,0.00019178,2]
[359627608,1746195039962,-500.0,0.00019178,2]
[359627609,1746195039972,-500.0,0.00019178,2]
[359627611,1746195039982,-400.0,0.00019178,2]
[359627612,1746195039992,-500.0,0.00019178,2]
[359627613,1746195040002,-500.0,0.00019178,2]
[359627614,1746195040012,-400.0,0.00019178,2]
[359627615,1746195040022,-400.0,0.00019178,2]
[359627616,1746195040032,-500.0,0.00019178,2]
[359627617,1746195040041,-400.0,0.00019178,2]
[359627618,1746195040051,-400.0,0.00019178,2]
[359627619,1746195040061,-400.0,0.00019178,2]
[359627620,1746195040071,-400.0,0.00019178,2]
[359627621,1746195040081,-500.0,0.00019178,2]
[359627622,1746195040092,-151.0,0.00019178,2]
[359627623,1746195040102,-151.0,0.00019178,2]
[359627624,1746195040112,-151.0,0.00019178,2]
[359627625,1746195040124,-151.0,0.00019178,2]
[359627626,1746195040134,-400.0,0.00019178,2]
[359627627,1746195040144,-500.0,0.00019178,2]
[359627628,1746195040154,-400.0,0.00019178,2]
[359627629,1746195040164,-400.0,0.00019178,2]
[359627630,1746195040174,-400.0,0.00019178,2]
[359627631,1746195040184,-500.0,0.00019178,2]
[359627632,1746195040202,-400.0,0.00019178,2]
[359627633,1746195040213,-400.0,0.00019178,2]
[359627634,1746195040223,-500.0,0.00019178,2]
[359627636,1746195040233,-500.13,0.00019178,2]
[359627638,1746195040243,-500.9470932,0.00019178,2]
[359627639,1746195040254,-400.0,0.00019178,2]
[359627641,1746195040263,-500.0,0.00019178,2]
[359627642,1746195040273,-500.0,0.00019178,2]
[359627643,1746195040284,-510.03668428,0.00019178,2]
[359627644,1746195040295,-2061.8,0.00019178,2]
[359627645,1746195040305,-500.0,0.00019178,2]
[359627646,1746195040315,-400.0,0.00019178,2]
[359627647,1746195040325,-400.0,0.00019178,2]
[359627649,1746195040335,-400.0,0.00019178,2]
[359627651,1746195040346,-400.0,0.00019178,2]
[359627653,1746195040356,-400.0,0.00019178,2]
[359627655,1746195040366,-400.0,0.00019178,2]
[359627657,1746195040378,-400.47568989,0.00019178,2]
[359627659,1746195040388,-500.0,0.00019178,2]
[359627661,1746195040398,-400.0,0.00019178,2]
[359627663,1746195040408,-400.0,0.00019178,2]
[359627665,1746195040418,-500.0,0.00019178,2]
[359627667,1746195040428,-400.0,0.00019178,2]
[359627669,1746195040438,-500.9594006,0.00019178,2]
[359627671,1746195040449,-500.14583226,0.00019178,2]
[359627673,1746195040459,-400.0,0.00019178,2]
[359627675,1746195040468,-400.0,0.00019178,2]
[359627677,1746195040478,-400.0,0.00019178,2]
[359627679,1746195040488,-400.0,0.00019178,2]
[359627681,1746195040498,-504.11547795,0.00019178,2]
[359627683,1746195040508,-400.0,0.00019178,2]
[359627685,1746195040518,-400.0,0.00019178,2]
[359627687,1746195040528,-339.26388342,0.00019178,2]
[359627689,1746195040538,-400.0,0.00019178,2]
[359627691,1746195040547,-506.98434479,0.00019178,2]
[359627693,1746195040557,-400.0,0.00019178,2]
[359627695,1746195040566,-400.0,0.00019178,2]
[359627697,1746195040576,-400.0,0.00019178,2]
[359627699,1746195040586,-400.0,0.00019178,2]
[359627701,1746195040595,-400.0,0.00019178,2]
[359627703,1746195040605,-400.0,0.00019178,2]
[359627705,1746195040615,-500.0,0.00019178,2]
[359627707,1746195040626,-500.0,0.00019178,2]
[359627709,1746195040636,-500.0,0.00019178,2]
[359627711,1746195040645,-400.0,0.00019178,2]
[359627714,1746195040656,-400.0,0.00019178,2]
[359627716,1746195040665,-500.0,0.00019178,2]
[359627718,1746195040675,-500.59206856,0.00019178,2]
[359627720,1746195040684,-400.0,0.00019178,2]
[359627722,1746195040693,-500.0,0.00019178,2]
[359627724,1746195040703,-400.0,0.00019178,2]
[359627726,1746195040713,-500.43082469,0.00019178,2]
[359627728,1746195040723,-400.0,0.00019178,2]
[359627730,1746195040732,-400.0,0.00019178,2]
[359627732,1746195040744,-400.0,0.00019178,2]
[359627734,1746195040754,-400.0,0.00019178,2]
[359627736,1746195040763,-514.36,0.00019178,2]
[359627738,1746195040773,-400.0,0.00019178,2]
[359627740,1746195040783,-400.08,0.00019178,2]
[359627742,1746195040793,-767.54,0.00019178,2]
[359627744,1746195040804,-400.0,0.00019178,2]
[359627746,1746195040815,-522.06453595,0.00019178,2]
[359627748,1746195040823,-500.0,0.00019178,2]
[359627750,1746195040833,-500.0,0.00019178,2]
[359627752,1746195040843,-842.79,0.00019178,2]
[359627754,1746195040853,-500.0,0.00019178,2]
[359627756,1746195040863,-507.98153235,0.00019178,2]
[359627758,1746195040873,-1136.05,0.00019178,2]
[359627760,1746195040882,-710.39,0.00019178,2]
[359627762,1746195040892,-400.0,0.00019178,2]
[359627764,1746195040902,-400.0,0.00019178,2]
[359627766,1746195040912,-400.0,0.00019178,2]
[359627768,1746195040922,-400.0,0.00019178,2]
[359627770,1746195040932,-500.47142295,0.00019178,2]
[359627772,1746195040942,-400.0,0.00019178,2]
[359627774,1746195040951,-400.0,0.00019178,2]
[359627776,1746195040962,-400.0,0.00019178,2]
[359627778,1746195040971,-400.0,0.00019178,2]
[359627780,1746195040981,-500.0,0.00019178,2]
[359627782,1746195040990,-400.0,0.00019178,2]
[359627784,1746195040999,-400.0,0.00019178,2]
[359627786,1746195041009,-433.6,0.00019178,2]
[359627788,1746195041018,-400.0,0.00019178,2]
[359627790,1746195041028,-400.0,0.00019178,2]
[359627792,1746195041038,-500.0,0.00019178,2]
[359627794,1746195041048,-500.0,0.00019178,2]
[359627796,1746195041058,-500.0,0.00019178,2]
[359627798,1746195041068,-500.0,0.00019178,2]
[359627800,1746195041078,-500.0,0.00019178,2]
[359627802,1746195041087,-500.0,0.00019178,2]
[359627804,1746195041097,-500.0,0.00019178,2]
[359627806,1746195041107,-400.0,0.00019178,2]
[359627809,1746195041117,-400.0,0.00019178,2]
[359627811,1746195041127,-500.0,0.00019178,2]
[359627813,1746195041137,-504.09797591,0.00019178,2]
[359627815,1746195041147,-500.0,0.00019178,2]
[359627817,1746195041157,-400.0,0.00019178,2]
[359627819,1746195041166,-500.0,0.00019178,2]
[359627821,1746195041175,-500.0,0.00019178,2]
[359627823,1746195041185,-500.0,0.00019178,2]
[359627825,1746195041195,-500.0,0.00019178,2]
[359627827,1746195041204,-500.0,0.00019178,2]
[359627829,1746195041214,-400.0,0.00019178,2]
[359627831,1746195041224,-400.0,0.00019178,2]
[359627833,1746195041234,-546.64,0.00019178,2]
[359627835,1746195041243,-400.0,0.00019178,2]
[359627837,1746195041253,-500.0,0.00019178,2]
[359627839,1746195041262,-500.0,0.00019178,2]
[359627841,1746195041272,-500.0,0.00019178,2]
[359627843,1746195041282,-500.0,0.00019178,2]
[359627845,1746195041291,-500.0,0.00019178,2]
[359627847,1746195041301,-400.0,0.00019178,2]
[359627849,1746195041310,-400.0,0.00019178,2]
[359627851,1746195041320,-500.0,0.00019178,2]
[359627853,1746195041329,-500.0,0.00019178,2]
[359627881,1746195041574,-400.0,0.00019178,2]
[359627883,1746195041584,-400.0,0.00019178,2]
[359627885,1746195041594,-605.67,0.00019178,2]
[359627887,1746195041603,-400.0,0.00019178,2]
[359627889,1746195041612,-400.0,0.00019178,2]
[359627891,1746195041622,-500.0,0.00019178,2]
[359627893,1746195041631,-400.0,0.00019178,2]
[359627895,1746195041641,-500.0,0.00019178,2]
[359627898,1746195041650,-400.0,0.00019178,2]
[359627899,1746195041659,-400.0,0.00019178,2]
[359627901,1746195041668,-400.0,0.00019178,2]
[359627904,1746195041677,-151.0,0.00019178,2]
[359627906,1746195041687,-500.0,0.00019178,2]
[359627907,1746195041696,-400.0,0.00019178,2]
[359627910,1746195041705,-400.0,0.00019178,2]
[359627912,1746195041714,-400.0,0.00019178,2]
[359627914,1746195041724,-400.0,0.00019178,2]
[359627916,1746195041733,-400.0,0.00019178,2]
[359627918,1746195041747,-1000.0,0.00019178,2]
[359627920,1746195041756,-400.0,0.00019178,2]
[359627922,1746195041765,-500.0,0.00019178,2]
[359627924,1746195041774,-531.22,0.00019178,2]
[359627926,1746195041783,-400.0,0.00019178,2]
[359627928,1746195041792,-400.0,0.00019178,2]
[359627930,1746195041801,-500.0,0.00019178,2]
[359627932,1746195041810,-500.0,0.00019178,2]
[359627933,1746195041822,-400.0,0.00019178,2]
[359627936,1746195041832,-500.0,0.00019178,2]
[359627938,1746195041841,-500.0,0.00019178,2]
[359627940,1746195041851,-400.0,0.00019178,2]
[359627942,1746195041860,-508.37697616,0.00019178,2]
[359627944,1746195041869,-517.52897494,0.00019178,2]
[359627946,1746195041880,-485.22,0.00019178,2]
[359627948,1746195041889,-501.65230332,0.00019178,2]
[359627950,1746195041898,-400.0,0.00019178,2]
[359627952,1746195041907,-500.0,0.00019178,2]
[359627954,1746195041917,-500.0,0.00019178,2]
[359627956,1746195041926,-500.0,0.00019178,2]
[359627958,1746195041935,-561.06,0.00019178,2]
[359627960,1746195041945,-500.0,0.00019178,2]
[359627962,1746195041954,-606.16,0.00019178,2]
[359627964,1746195041964,-500.0,0.00019178,2]
[359627966,1746195041973,-400.0,0.00019178,2]
[359627968,1746195041983,-501.0612214,0.00019178,2]
[359627970,1746195041993,-400.0,0.00019178,2]
[359627972,1746195042002,-400.0,0.00019178,2]
[359627974,1746195042011,-502.96567269,0.00019178,2]
[359627976,1746195042020,-400.0,0.00019178,2]
[359627978,1746195042029,-400.0,0.00019178,2]
[359627980,1746195042038,-400.0,0.00019178,2]
[359627982,1746195042047,-500.0,0.00019178,2]
[359627984,1746195042056,-400.0,0.00019178,2]
[359627985,1746195042065,-400.0,0.00019178,2]
[359627987,1746195042074,-500.93762861,0.00019178,2]
[359627989,1746195042083,-400.0,0.00019178,2]
[359627991,1746195042093,-504.01718018,0.00019178,2]
[359627993,1746195042102,-400.0,0.00019178,2]
[359627995,1746195042112,-400.0,0.00019178,2]
[359627997,1746195042121,-500.0,0.00019178,2]
[359627999,1746195042132,-500.91987735,0.00019178,2]
[359628001,1746195042142,-429.25,0.00019178,2]
[359628003,1746195042151,-442.38670019,0.00019178,2]
[359628005,1746195042160,-400.0,0.00019178,2]
[359628007,1746195042170,-400.0,0.00019178,2]
[359628009,1746195042180,-500.0,0.00019178,2]
[359628012,1746195042190,-500.0,0.00019178,2]
[359628014,1746195042200,-400.0,0.00019178,2]
[359628015,1746195042209,-400.0,0.00019178,2]
[359628018,1746195042219,-526.70631053,0.00019178,2]
[359628020,1746195042228,-503.40331968,0.00019178,2]
[359628021,1746195042237,-400.0,0.00019178,2]
[359628024,1746195042247,-500.0,0.00019178,2]
[359628025,1746195042256,-400.0,0.00019178,2]
[359628027,1746195042266,-400.0,0.00019178,2]
[359628029,1746195042275,-501.16058126,0.00019178,2]
[359628032,1746195042285,-400.0,0.00019178,2]
[359628034,1746195042294,-417.3,0.00019178,2]
[359628035,1746195042303,-400.0,0.00019178,2]
[359628038,1746195042314,-505.19891667,0.00019178,2]
[359628040,1746195042324,-400.0,0.00019178,2]
[359628042,1746195042334,-400.0,0.00019178,2]
[359628044,1746195042343,-400.0,0.00019178,2]
[359628046,1746195042353,-500.0,0.00019178,2]
[359628048,1746195042362,-400.0,0.00019178,2]
[359628050,1746195042373,-500.0,0.00019178,2]
[359628052,1746195042383,-500.0,0.00019178,2]
[359628054,1746195042393,-400.0,0.00019178,2]
[359628056,1746195042402,-500.0,0.00019178,2]
[359628058,1746195042411,-500.0,0.00019178,2]
[359628060,1746195042421,-500.76749215,0.00019178,2]
[359628062,1746195042430,-500.0,0.00019178,2]
[359628063,1746195042439,-400.0,0.00019178,2]
[359628066,1746195042449,-400.0,0.00019178,2]
[359628068,1746195042458,-500.0,0.00019178,2]
[359628070,1746195042467,-400.0,0.00019178,2]
[359628072,1746195042476,-400.0,0.00019178,2]
[359628074,1746195042485,-500.0,0.00019178,2]
[359628076,1746195042494,-500.0,0.00019178,2]
[359628078,1746195042503,-500.0,0.00019178,2]
[359628079,1746195042512,-502.04533723,0.00019178,2]
[359628081,1746195042522,-153.6,0.00019178,2]
[359628083,1746195042531,-479.85,0.00019178,2]
[359628086,1746195042541,-500.0,0.00019178,2]
[359628088,1746195042550,-500.73751405,0.00019178,2]
[359628089,1746195042559,-500.0,0.00019178,2]
[359628091,1746195042569,-400.0,0.00019178,2]
[359628093,1746195042578,-400.0,0.00019178,2]
[359628095,1746195042587,-434.14,0.00019178,2]
[359628098,1746195042597,-151.0,0.00019178,2]
[359628100,1746195042606,-151.0,0.00019178,2]
[359628102,1746195042615,-151.0,0.00019178,2]
[359628104,1746195042624,-156.994749,0.00019178,2]
[359628106,1746195042633,-544.33,0.00019178,2]
[359628108,1746195042642,-500.0,0.00019178,2]
[359628110,1746195042652,-503.84755559,0.00019178,2]
[359628112,1746195042661,-400.0,0.00019178,2]
[359628114,1746195042670,-513.81692754,0.00019178,2]
[359628116,1746195042679,-400.0,0.00019178,2]
[359628118,1746195042689,-400.0,0.00019178,2]
[359628120,1746195042698,-420.07,0.00019178,2]
[359628122,1746195042708,-500.0,0.00019178,2]
[359628124,1746195042717,-977.02,0.00019178,2]
[359628125,1746195042726,-400.0,0.00019178,2]
[359628128,1746195042737,-977.02,0.00019178,2]
[359628130,1746195042747,-977.02,0.00019178,2]
[359628132,1746195042756,-977.02,0.00019178,2]
[359628134,1746195042765,-977.02,0.00019178,2]
[359628136,1746195042774,-500.0,0.00019178,2]
[359628138,1746195042785,-500.0,0.00019178,2]
[359628140,1746195042793,-977.02,0.00019178,2]
[359628142,1746195042803,-977.02,0.00019178,2]
[359628144,1746195042812,-977.02,0.00019178,2]
[359628146,1746195042821,-977.02,0.00019178,2]
[359628148,1746195042830,-977.02,0.00019178,2]
[359628150,1746195042839,-977.02,0.00019178,2]
[359628152,1746195042847,-400.0,0.00019178,2]
[359628154,1746195042856,-977.02,0.00019178,2]
[359628156,1746195042865,-977.02,0.00019178,2]
[359628158,1746195042875,-500.0,0.00019178,2]
[359628162,1746195042884,-977.02,0.00019178,2]
[359628164,1746195042893,-977.02,0.00019178,2]
[359628167,1746195042902,-977.02,0.00019178,2]
[359628170,1746195042912,-977.02,0.00019178,2]
[359628173,1746195042921,-977.02,0.00019178,2]
[359628175,1746195042931,-977.02,0.00019178,2]
[359628177,1746195042942,-977.02,0.00019178,2]
[359628179,1746195042952,-977.02,0.00019178,2]
[359628181,1746195042961,-977.02,0.00019178,2]
[359628183,1746195042971,-500.0,0.00019178,2]
[359628185,1746195042980,-977.02,0.00019178,2]
[359628187,1746195042990,-977.14,0.00019178,2]
[359628190,1746195042999,-400.0,0.00019178,2]
[359628192,1746195043009,-500.0,0.00019178,2]
[359628195,1746195043018,-909.11,0.00019178,2]
[359628198,1746195043028,-698.22,0.00019178,2]
[359628201,1746195043037,-500.0,0.00019178,2]
[359628203,1746195043047,-810.64,0.00019178,2]
[359628205,1746195043056,-500.83445359,0.00019178,2]
[359628207,1746195043065,-500.0,0.00019178,2]
[359628209,1746195043074,-500.0,0.00019178,2]
[359628211,1746195043084,-400.0,0.00019178,2]
[359628213,1746195043094,-400.0,0.00019178,2]
[359628215,1746195043103,-400.0,0.00019178,2]
[359628217,1746195043112,-500.0,0.00019178,2]